bitfinex-derivatives/quotes_ETHF0:USTF0_20251008
["timestamp","ask_amount","ask_price","bid_price","bid_amount"]
[1759960192984,1.22709024,4520.1,4520.0,0.8692]
[1759960193386,1.43229024,4520.1,4520.0,0.8692]
[1759960193587,1.43229024,4520.1,4520.0,0.7447]
[1759960194692,1.432677,4520.1,4520.0,0.7447]
[1759960197097,1.9213692,4520.1,4520.0,0.8692]
[1759960197501,1.9213692,4520.1,4520.0,1.26731]
[1759960197895,2.2517692,4520.1,4520.0,1.26731]
[1759960198095,2.4569692,4520.1,4520.0,1.26731]
[1759960198500,2.4569692,4520.1,4520.0,0.7447]
[1759960201702,0.498977,4520.1,4520.0,1.26731]
[1759960201898,3.2078,4520.2,4520.1,1.1262]
[1759960202102,3.2078,4520.2,4520.1,1.3482]
[1759960211110,0.94408,4520.3,4520.2,1.14849]
[1759960214101,0.94408,4520.3,4520.2,1.15888716]
[1759960214508,0.94408,4520.3,4520.2,1.15975453]
[1759960214808,0.94408,4520.3,4520.2,0.93559]
[1759960215103,0.94408,4520.3,4520.2,0.9477219]
[1759960220514,0.94408,4520.3,4520.2,1.1606219]
[1759960221220,1.16338,4520.3,4520.2,1.1606219]
[1759960222415,0.94408,4520.3,4520.2,1.1606219]
[1759960224417,1.16338,4520.3,4520.2,1.1606219]
[1759960224618,0.39808,4520.3,4520.2,1.1606219]
[1759960224919,1.16337,4520.5,4520.4,1.14847]
[1759960225418,0.94407,4520.5,4520.4,1.14847]
[1759960226013,0.94407,4520.5,4520.4,1.1606019]
[1759960226313,1.16337,4520.5,4520.4,1.1606019]
[1759960226515,1.29057,4520.5,4520.4,1.1606019]
[1759960227220,0.8925,4520.5,4520.4,1.1606019]
[1759960227520,1.29056,4520.5,4520.4,1.1606019]
[1759960229921,1.16336,4520.5,4520.4,1.1606019]
[1759960231219,1.66350619,4520.5,4520.4,1.1606019]
[1759960231712,1.79070619,4520.5,4520.4,1.1606019]
[1759960233121,1.79070619,4520.5,4520.4,0.4102019]
[1759960234618,1.79070619,4520.5,4520.4,0.9477019]
[1759960242631,1.79070619,4520.5,4520.4,0.6245019]
[1759960243023,1.66350619,4520.5,4520.4,1.1648019]
[1759960243626,1.66350619,4520.5,4520.4,0.8497019]
[1759960243829,1.78960619,4520.5,4520.4,0.8497019]
[1759960247735,1.78960619,4520.5,4520.4,0.4102019]
[1759960248438,1.78960619,4520.5,4520.4,0.6176019]
[1759960248640,1.66350619,4520.5,4520.4,1.1577019]
[1759960249139,1.78960619,4520.5,4520.4,1.1577019]
[1759960251838,1.66350619,4520.5,4520.4,1.1577019]
[1759960252240,1.44420619,4520.5,4520.4,1.1577019]
[1759960252740,1.67080619,4520.5,4520.4,1.1577019]
[1759960253641,1.79690619,4520.5,4520.4,1.1577019]
[1759960257850,1.67080619,4520.5,4520.4,1.1577019]
[1759960258453,1.79690619,4520.5,4520.4,0.6176019]
[1759960259451,1.79690619,4520.5,4520.4,0.9327019]
[1759960260355,1.79690619,4520.5,4520.4,0.6176019]
[1759960261456,1.79690619,4520.5,4520.4,0.4102019]
[1759960261656,1.79690619,4520.5,4520.4,0.6176019]
[1759960261854,1.24370619,4520.5,4520.4,0.8426019]
[1759960262060,0.89820619,4520.5,4520.4,1.1577019]
[1759960263356,0.89820619,4520.5,4520.4,1.3797019]
[1759960269364,0.89820619,4520.5,4520.4,1.1577019]
[1759960269564,0.89820619,4520.5,4520.4,1.3797019]
[1759960272168,0.50014619,4520.5,4520.4,1.3797019]
[1759960272368,0.89820619,4520.5,4520.4,1.3797019]
[1759960274364,0.50014619,4520.5,4520.4,1.3797019]
[1759960276869,0.89820619,4520.5,4520.4,1.3797019]
[1759960278666,1.20730619,4520.5,4520.4,1.3797019]
[1759960278974,0.89820619,4520.5,4520.4,1.3797019]
[1759960280975,0.89820619,4520.5,4520.4,1.1577019]
[1759960281276,0.89820619,4520.5,4520.4,1.3797019]
[1759960281777,0.89820619,4520.5,4520.4,1.1577019]
[1759960282077,0.89820619,4520.5,4520.4,1.3797019]
[1759960282979,0.89820619,4520.5,4520.4,1.1577019]
[1759960283170,0.89820619,4520.5,4520.4,1.3797019]
[1759960285272,0.50014619,4520.5,4520.4,1.3797019]
[1759960285474,0.89820619,4520.5,4520.4,1.3797019]
[1759960285669,0.50014619,4520.5,4520.4,1.3797019]
[1759960290177,0.50014619,4520.5,4520.4,1.1577019]
[1759960290481,0.39803,4520.9,4520.4,1.1577019]
[1759960290482,0.39803,4520.9,4520.8,1.15624]
[1759960290670,0.89728768,4520.9,4520.8,1.15624]
[1759960290977,4.33378433,4520.9,4520.8,1.1683719]
[1759960291178,4.33378433,4520.9,4520.8,0.7703319]
[1759960291179,4.55798433,4520.9,4520.8,0.7703319]
[1759960292381,4.55798433,4520.9,4520.8,0.4315319]
[1759960292581,4.55798433,4520.9,4520.8,0.7703319]
[1759960293075,4.55798433,4520.9,4520.8,1.1683719]
[1759960295076,1.01635768,4520.9,4520.8,1.1683719]
[1759960296180,1.41438768,4520.9,4520.8,1.1683719]
[1759960300784,1.20638768,4520.9,4520.8,1.1683719]
[1759960300980,1.42508768,4520.9,4520.8,1.1683719]
[1759960301179,1.02705768,4520.9,4520.8,1.1683719]
[1759960301685,0.80835768,4520.9,4520.8,1.1683719]
[1759960304686,0.49925768,4520.9,4520.8,1.1683719]
[1759960308585,1.06165768,4520.9,4520.8,1.1683719]
[1759960309088,1.45968768,4520.9,4520.8,1.1683719]
[1759960309890,1.06165768,4520.9,4520.8,1.1683719]
[1759960310692,1.27385768,4520.9,4520.8,1.1683719]
[1759960311688,1.67188768,4520.9,4520.8,1.1683719]
[1759960312693,1.27385768,4520.9,4520.8,1.1683719]
[1759960315392,1.06165768,4520.9,4520.8,1.1683719]
[1759960316491,1.27385768,4520.9,4520.8,1.1683719]
[1759960320796,1.27468952,4520.9,4520.8,1.1683719]
[1759960328014,1.67271952,4520.9,4520.8,1.1683719]
[1759960329611,1.27468952,4520.9,4520.8,1.3903719]
[1759960330012,1.67271952,4520.9,4520.8,0.6238719]
[1759960330317,1.67271952,4520.9,4520.8,0.4101719]
[1759960330511,1.67271952,4520.9,4520.8,0.0121319]
[1759960331113,1.67271952,4520.9,4520.8,0.4101719]
[1759960342322,1.67312464,4520.9,4520.8,0.4101719]
[1759960342718,1.67312464,4520.9,4520.8,0.0121319]
[1759960343218,1.67312464,4520.9,4520.8,0.4101719]
[1759960343426,1.67312464,4520.9,4520.8,0.0121319]
[1759960346619,1.67312464,4520.9,4520.8,0.4101719]
[1759960347126,4.48873402,4520.9,4520.8,0.4101719]
[1759960347423,4.48873402,4520.9,4520.8,0.0121319]
[1759960351328,1.14408,4520.4,4520.3,0.39807]
[1759960351731,4.04081302,4520.4,4520.3,0.39807]
[1759960352221,0.39809,4520.2,4520.1,0.39809]
[1759960352520,1.14409,4520.2,4520.1,0.39809]
[1759960356526,0.7097,4520.1,4520.0,3.2078]
[1759960356827,1.1441,4520.1,4520.0,3.2078]
[1759960358429,1.1441,4520.1,4520.0,3.60591]
[1759960359123,1.1441,4520.1,4520.0,0.39811]
[1759960361826,1.1441,4520.1,4520.0,0.61021]
[1759960363332,0.746,4520.1,4520.0,0.61021]
[1759960366435,0.746,4520.1,4520.0,1.14161]
[1759960372541,0.5378,4520.1,4520.0,1.14161]
[1759960372842,0.7476,4520.1,4520.0,1.14161]
[1759960373139,0.3116,4520.1,4520.0,1.14161]
[1759960373333,0.5219,4520.1,4520.0,1.14161]
[1759960374641,0.7317,4520.1,4520.0,1.14161]
[1759960375737,0.7317,4520.1,4520.0,1.36361]
[1759960376942,0.7317,4520.1,4520.0,1.14161]
[1759960377142,0.7317,4520.1,4520.0,1.36361]
[1759960381839,0.7317,4520.1,4520.0,0.62011]
[1759960382240,1.23396016,4520.1,4520.0,0.62011]
[1759960383141,1.23396016,4520.1,4520.0,0.83831]
[1759960383845,0.7439,4519.7,4519.6,0.39814]
[1759960384043,1.24616016,4519.7,4519.6,0.39814]
[1759960384941,0.7439,4519.7,4519.6,0.39814]
[1759960385333,0.4201,4519.7,4519.2,0.3182]
[1759960385534,0.5341,4519.2,4519.1,4.57758]
[1759960386440,0.7439,4519.2,4519.1,4.57658]
[1759960386745,0.7439,4519.2,4519.1,4.57758]
[1759960388642,0.5341,4519.2,4519.1,4.57758]
[1759960389044,0.5341,4519.2,4519.1,4.35558]
[1759960389245,0.5341,4519.2,4519.1,4.57758]
[1759960392147,0.7422,4519.2,4519.1,4.57758]
[1759960393040,0.7422,4519.2,4519.1,1.36978]
[1759960394649,1.14038,4519.2,4519.1,0.222]
[1759960394841,1.14038,4519.2,4519.1,0.62018]
[1759960395043,1.14038,4519.2,4519.1,0.222]
[1759960395849,1.14038,4519.2,4519.1,0.62018]
[1759960397450,1.14038,4519.2,4519.1,0.39818]
[1759960397652,1.14038,4519.2,4519.1,0.62018]
[1759960398150,1.14038,4519.2,4519.1,0.39818]
[1759960398451,1.14038,4519.2,4519.1,0.62018]
[1759960400253,1.14038,4519.2,4519.1,0.222]
[1759960400954,1.14038,4519.2,4519.1,0.6634]
[1759960401550,1.14038,4519.2,4519.1,0.4369]
[1759960402953,1.14038,4519.2,4519.1,0.222]
[1759960404150,1.14038,4519.2,4519.1,0.9796]
[1759960404354,1.14038,4519.2,4519.1,0.6634]
[1759960404553,1.14038,4519.2,4519.1,0.4369]
[1759960405250,1.14038,4519.2,4519.1,0.222]
[1759960406157,1.14038,4519.2,4519.1,0.6634]
[1759960406350,1.14038,4519.2,4519.1,0.7576]
[1759960406552,1.14038,4519.2,4519.1,0.9796]
[1759960406957,1.14038,4519.2,4519.1,0.4369]
[1759960408259,1.14038,4519.2,4519.1,0.9796]
[1759960408658,1.14038,4519.2,4519.1,0.4369]
[1759960410355,1.14038,4519.2,4519.1,0.9796]
[1759960411558,1.14038,4519.2,4519.1,0.6634]
[1759960411759,1.14038,4519.2,4519.1,0.4369]
[1759960412064,1.14038,4519.2,4519.1,0.2149]
[1759960412362,1.14038,4519.2,4519.1,0.4369]
[1759960412957,1.14038,4519.2,4519.1,0.222]
[1759960413658,1.14932,4518.7,4518.6,1.23882655]
[1759960413962,1.14932,4518.7,4518.6,0.2149]
[1759960414557,6.14932,4518.7,4518.5,0.00213575]
[1759960414754,5.94090405,4518.6,4518.5,0.00213575]
[1759960414958,6.26000405,4518.6,4518.5,0.00213575]
[1759960415159,9.11342368,4518.6,4518.5,0.00213575]
[1759960416555,10.13735023,4518.6,4518.5,0.00213575]
[1759960417260,2.38944,4518.5,4517.9,3.2078]
[1759960417466,1.14941,4517.7,4517.6,0.7531]
[1759960417665,1.14941,4517.7,4517.6,0.2149]
[1759960418462,1.15161138,4517.7,4517.6,0.21682914]
[1759960418859,1.15161138,4517.7,4517.6,0.54812914]
[1759960421063,0.00220138,4517.7,4517.6,0.76992914]
[1759960421670,0.33890138,4517.7,4517.6,0.76992914]
[1759960421869,0.55850138,4517.7,4517.6,0.76992914]
[1759960422768,0.00220138,4517.7,4517.6,0.76992914]
[1759960424568,0.00220138,4517.7,4517.6,5.76992914]
[1759960424770,0.00220138,4517.7,4517.6,6.16824914]
[1759960431979,0.00220138,4517.7,4517.6,6.39024914]
[1759960432275,0.00220138,4517.7,4517.6,2.41417569]
[1759960434475,0.00220138,4517.7,4517.6,0.76992914]
[1759960434677,0.00220138,4517.7,4517.6,0.99192914]
[1759960434678,0.53650138,4517.7,4517.6,0.99192914]
[1759960434884,0.93481138,4517.7,4517.6,0.99192914]
[1759960435179,1.16101138,4517.7,4517.6,0.99192914]
[1759960435869,1.16101138,4517.7,4517.6,0.00192914]
[1759960436274,8.98630069,4517.7,4517.6,0.00192914]
[1759960437573,5.01022724,4517.7,4517.6,0.77052914]
[1759960437779,3.98630069,4517.7,4517.6,0.77052914]
[1759960439582,3.98630069,4517.7,4517.6,0.22432914]
[1759960439784,3.98630069,4517.7,4517.6,0.00192914]
[1759960440078,1.16101138,4517.7,4517.6,0.00192914]
[1759960440278,1.16101138,4517.7,4517.6,0.22432914]
[1759960443675,1.16101138,4517.7,4517.6,0.00192914]
[1759960445681,6.16101138,4517.7,4517.6,0.00192914]
[1759960445982,6.67037432,4517.7,4517.6,0.00192914]
[1759960449988,7.85642409,4517.7,4517.6,0.00192914]
[1759960451490,10.72987018,4517.7,4517.6,0.00192914]
[1759960452589,10.95187018,4517.7,4517.6,0.00192914]
[1759960465489,0.39838,4516.9,4516.8,3.60619]
[1759960465794,1.17168,4516.9,4516.8,3.60619]
[1759960466597,1.17168,4516.9,4516.8,3.60869418]
[1759960468698,1.17168,4516.9,4516.8,4.15569418]
[1759960469400,1.17168,4516.9,4516.8,0.94789418]
[1759960469594,1.17168,4516.9,4516.8,0.40089418]
[1759960470898,1.17168,4516.9,4516.8,0.61969418]
[1759960471102,1.17168,4516.9,4516.8,0.83419418]
[1759960471301,1.17168,4516.9,4516.8,1.16239418]
[1759960472591,0.39837,4517.1,4517.0,1.15987]
[1759960472796,0.39837,4517.1,4517.0,1.29097]
[1759960472993,0.84465,4517.2,4517.1,0.61716]
[1759960473198,1.68431154,4517.2,4517.1,1.15986]
[1759960473800,1.90301154,4517.2,4517.1,1.15986]
[1759960474305,1.39365,4517.2,4517.1,1.15986]
[1759960474499,1.39365,4517.2,4517.1,0.7615]
[1759960475797,1.17165,4517.2,4517.1,0.7615]
[1759960476106,0.7733,4517.2,4517.1,0.7615]
[1759960480204,0.5546,4517.2,4517.1,0.7615]
[1759960482801,0.39835,4517.3,4517.1,0.7615]
[1759960483110,0.72655,4517.3,4517.2,0.7596]
[1759960483408,1.46270663,4517.3,4517.2,0.7596]
[1759960483609,1.68440663,4517.3,4517.2,0.7596]
[1759960490019,0.39835,4517.3,4517.2,0.7596]
[1759960490217,3.21000138,4517.7,4517.2,5.7596]
[1759960490408,0.00220138,4517.7,4517.6,0.7596]
[1759960490615,0.3282,4518.1,4517.7,0.3172]
[1759960490816,0.72647,4518.1,4518.0,0.7596]
[1759960491016,1.23654769,4518.1,4518.0,0.7596]
[1759960491211,0.72647,4518.1,4518.0,0.7596]
[1759960491617,0.72814558,4518.1,4518.0,0.7596]
[1759960495119,0.72814558,4518.1,4518.0,0.886]
[1759960501126,0.39994558,4518.1,4518.0,0.886]
[1759960502233,1.17644558,4518.1,4518.0,0.7596]
[1759960512737,0.00167558,4518.1,4518.0,1.28428]
[1759960513129,0.00167558,4518.1,4518.0,9.49208]
[1759960514232,0.39825,4518.5,4518.2,0.39826]
[1759960514438,0.39825,4518.5,4518.4,0.7665]
[1759960515342,0.39982617,4518.5,4518.4,0.7665]
[1759960515541,0.00157617,4518.5,4518.4,1.16475]
[1759960520242,0.39818,4519.1,4519.0,0.8972]
[1759960520442,0.39818,4519.1,4519.0,1.1182]
[1759960521252,0.40075367,4519.1,4519.0,1.1182]
[1759960526157,0.73695367,4519.1,4519.0,1.1182]
[1759960527255,0.40075367,4519.1,4519.0,1.1182]
[1759960530559,0.00257367,4519.1,4519.0,1.51639]
[1759960530750,0.00257367,4519.1,4519.0,2.540978]
[1759960533152,0.3362,4519.9,4519.8,0.2058]
[1759960533462,0.3362,4519.9,4519.8,0.7665]
[1759960533960,0.5421,4519.9,4519.8,0.7665]
[1759960534160,0.54473133,4519.9,4519.8,0.7665]
[1759960534460,0.94284133,4519.9,4519.8,0.7665]
[1759960537063,0.40074133,4519.9,4519.8,0.7665]
[1759960538264,0.73694133,4519.9,4519.8,0.7665]
[1759960539155,0.94284133,4519.9,4519.8,0.7665]
[1759960543856,0.40074133,4519.9,4519.8,0.7665]
[1759960547368,0.71314133,4519.9,4519.8,0.7665]
[1759960551974,0.40074133,4519.9,4519.8,0.7665]
[1759960554371,0.90319726,4519.9,4519.8,0.7665]
[1759960554971,0.40074133,4519.9,4519.8,0.7665]
[1759960559177,0.71314133,4519.9,4519.8,0.7665]
[1759960560077,1.21591491,4519.9,4519.8,0.7665]
[1759960563988,1.21591491,4519.9,4519.8,0.9875]
[1759960564280,0.71314133,4519.9,4519.8,0.9875]
[1759960566483,0.40074133,4519.9,4519.8,0.9875]
[1759960567188,0.71314133,4519.9,4519.8,0.9875]
[1759960568392,0.00263133,4519.9,4519.8,2.410208]
[1759960569698,0.34153133,4519.9,4519.8,1.16462]
[1759960569889,0.00263133,4519.9,4519.8,1.38562]
[1759960570895,0.00263133,4519.9,4519.8,0.9875]
[1759960571093,0.40074133,4519.9,4519.8,1.38562]
[1759960571495,0.73964133,4519.9,4519.8,1.38562]
[1759960572497,0.73964133,4519.9,4519.8,0.7665]
[1759960572699,0.73964133,4519.9,4519.8,0.9875]
[1759960573098,0.95244133,4519.9,4519.8,0.9875]
[1759960574399,0.95244133,4519.9,4519.8,1.38562]
[1759960577701,0.55433133,4519.9,4519.8,1.38562]
[1759960579502,0.34153133,4519.9,4519.8,1.38562]
[1759960579800,0.34153133,4519.9,4519.8,4.59342]
[1759960584105,0.00263133,4519.9,4519.8,4.59342]
[1759960587706,0.34153133,4519.9,4519.8,4.59342]
[1759960590407,0.00263133,4519.9,4519.8,4.59342]
[1759960592202,0.55433133,4519.9,4519.8,4.38762]
[1759960592404,0.76303133,4519.9,4519.8,3.82692]
[1759960593206,0.76303133,4519.9,4519.8,3.60592]
[1759960593400,0.76303133,4519.9,4519.8,3.82692]
[1759960595511,1.16114133,4519.9,4519.8,3.82692]
[1759960595712,1.16114133,4519.9,4519.8,4.03452]
[1759960596607,1.16114133,4519.9,4519.8,4.34932]
[1759960597109,0.76303133,4519.9,4519.8,4.03452]
[1759960599515,0.76303133,4519.9,4519.8,4.34602]
[1759960600114,0.76303133,4519.9,4519.8,4.03452]
[1759960602514,0.76303133,4519.9,4519.8,4.34602]
[1759960603109,0.76303133,4519.9,4519.8,4.55232]
[1759960604515,1.266184,4519.9,4519.8,4.55232]
[1759960605110,1.266184,4519.9,4519.8,3.82692]
[1759960605309,1.266184,4519.9,4519.8,0.61912]
[1759960610718,1.266184,4519.9,4519.8,0.83302]
[1759960611317,1.266184,4519.9,4519.8,1.17352]
[1759960612219,1.266184,4519.9,4519.8,1.38692]
[1759960614625,0.76303133,4519.9,4519.8,1.38692]
[1759960615825,0.76303133,4519.9,4519.8,1.04642]
[1759960616429,0.76303133,4519.9,4519.8,1.38692]
[1759960623732,1.16114133,4519.9,4519.8,1.16592]
[1759960623932,1.16114133,4519.9,4519.8,1.38692]
[1759960626134,1.16114133,4519.9,4519.8,0.9888]
[1759960627731,3.2078,4520.6,4520.5,0.4273]
[1759960627937,4.41890453,4520.6,4520.5,1.1155]
[1759960628230,4.11010453,4520.6,4520.5,1.1155]
[1759960628435,4.11010453,4520.6,4520.5,1.51356]
[1759960628827,4.11293383,4520.6,4520.5,1.51602437]
[1759960629030,0.50708383,4520.6,4520.5,1.51602437]
[1759960629736,0.0028293,4520.6,4520.5,1.51602437]
[1759960631836,0.0028293,4520.6,4520.5,2.53918326]
[1759960639849,0.4008793,4520.6,4520.5,2.53918326]
[1759960648950,0.6078793,4520.6,4520.5,2.53918326]
[1759960649155,0.9156793,4520.6,4520.5,2.53918326]
[1759960649656,0.9156793,4520.6,4520.5,2.31818326]
[1759960649856,0.9156793,4520.6,4520.5,2.53918326]
[1759960651361,0.4008793,4520.6,4520.5,2.53918326]
[1759960653454,0.7086793,4520.6,4520.5,1.51602437]
[1759960654160,0.90621683,4520.6,4520.5,1.51602437]
[1759960654559,0.4008793,4520.6,4520.5,1.51602437]
[1759960657254,0.90662911,4520.6,4520.5,1.51602437]
[1759960663360,1.23232911,4520.6,4520.5,1.51602437]
[1759960665360,1.67912911,4520.6,4520.5,0.21636437]
[1759960665566,1.67912911,4520.6,4520.5,0.00246437]
[1759960665766,4.52850925,4520.6,4520.5,0.00246437]
[1759960678082,0.8449,4520.1,4520.0,0.5148]
[1759960678274,1.1706,4520.1,4520.0,0.2069]
[1759960679075,1.1706,4520.1,4520.0,0.7228]
[1759960679381,1.1706,4520.1,4520.0,1.12323656]
[1759960681980,1.1706,4520.1,4520.0,1.34423656]
[1759960683387,0.7725,4520.1,4520.0,1.34423656]
[1759960690787,0.5667293,4520.6,4520.5,1.15856]
[1759960690981,0.0028293,4520.6,4520.5,5.51591889]
[1759960693889,0.0028293,4520.6,4520.5,5.67660741]
[1759960696683,0.0028293,4520.6,4520.5,4.49276]
[1759960697189,0.3402293,4520.6,4520.5,4.49276]
[1759960698689,0.5667293,4520.6,4520.5,4.49276]
[1759960702794,0.0028293,4520.6,4520.5,4.49276]
[1759960703095,0.0028293,4520.6,4520.5,4.71376]
[1759960703594,0.3188293,4520.6,4520.5,4.71376]
[1759960703895,0.0028293,4520.6,4520.5,4.71376]
[1759960704294,0.3188293,4520.6,4520.5,4.71376]
[1759960705697,0.5418293,4520.6,4520.5,4.58736]
[1759960706296,0.3188293,4520.6,4520.5,4.58736]
[1759960706495,0.3188293,4520.6,4520.5,4.71366]
[1759960706900,0.5418293,4520.6,4520.5,4.49266]
[1759960707199,0.5418293,4520.6,4520.5,4.58736]
[1759960709798,0.5418293,4520.6,4520.5,4.36636]
[1759960709998,0.5418293,4520.6,4520.5,4.58736]
[1759960710293,0.0028293,4520.6,4520.5,4.71366]
[1759960710500,0.316,4521.3,4521.2,0.8304]
[1759960710695,0.539,4521.6,4521.5,1.15417]
[1759960710997,0.539,4521.6,4521.5,1.37517]
[1759960711397,0.54093729,4521.6,4521.5,1.37517]
[1759960715997,0.75693729,4521.6,4521.5,1.37517]
[1759960718004,1.15489729,4521.6,4521.5,0.7562]
[1759960718306,1.15489729,4521.6,4521.5,1.37517]
[1759960718307,0.75693729,4521.6,4521.5,1.37517]
[1759960718603,1.15489729,4521.6,4521.5,1.37517]
[1759960724809,0.75693729,4521.6,4521.5,1.37517]
[1759960734509,0.31793729,4521.6,4521.5,1.37517]
[1759960734716,0.31793729,4521.6,4521.5,1.50557]
[1759960734915,0.00193729,4521.6,4521.5,1.50557]
[1759960738016,1.19166997,4523.1,4522.5,0.8763]
[1759960738317,0.2265,4523.0,4522.9,1.14785]
[1759960738518,3.2078,4523.3,4523.1,1.14783]
[1759960738519,0.2265,4523.2,4523.1,1.14783]
[1759960738819,1.30984741,4524.0,4523.1,0.4275]
[1759960738820,3.2078,4523.8,4523.1,0.4275]
[1759960739015,3.76726485,4523.8,4523.7,1.14778]
[1759960739321,3.54076485,4523.8,4523.7,1.14983212]
[1759960740018,3.21056485,4523.8,4523.7,1.14983212]
[1759960740421,0.00276485,4523.8,4523.7,1.14983212]
[1759960744109,3.7645,4524.8,4524.7,0.4275]
[1759960744315,3.2078,4525.3,4525.2,0.39765]
[1759960744523,3.2078,4525.3,4525.2,2.55249741]
[1759960744813,3.2078,4525.8,4525.7,0.8251]
[1759960745013,3.538,4525.8,4525.7,1.3686]
[1759960745213,3.76665503,4525.8,4525.7,1.3686]
[1759960745412,3.20995503,4525.8,4525.7,1.3686]
[1759960745614,0.00215503,4525.8,4525.7,1.3686]
[1759960749714,0.00215503,4525.8,4525.7,1.1476]
[1759960749920,0.00215503,4525.8,4525.7,1.3686]
[1759960750222,0.00215503,4525.8,4525.7,1.1476]
[1759960750425,0.00215503,4525.8,4525.7,1.3686]
[1759960751312,0.00215503,4525.8,4525.7,1.1476]
[1759960751717,0.00215503,4525.8,4525.7,1.3686]
[1759960753816,0.00215503,4525.8,4525.7,2.38938049]
[1759960755528,0.00215503,4525.8,4525.7,2.16838049]
[1759960755824,0.00215503,4525.8,4525.7,1.3686]
[1759960756033,0.00215503,4525.8,4525.7,1.1476]
[1759960756227,0.00215503,4525.8,4525.7,1.3686]
[1759960760133,0.00215503,4525.8,4525.7,1.1476]
[1759960760333,0.00215503,4525.8,4525.7,1.3686]
[1759960767436,0.00215503,4525.8,4525.7,1.1476]
[1759960767635,0.00215503,4525.8,4525.7,1.3686]
[1759960775445,0.50230317,4525.8,4525.7,1.3686]
[1759960780153,0.00215503,4525.8,4525.7,1.3686]
[1759960785354,1.19166997,4527.2,4527.1,0.39748]
[1759960785657,0.022,4527.9,4527.8,0.7509]
[1759960785848,1.2705345,4527.9,4527.8,0.7509]
[1759960786048,1.2705345,4527.9,4527.8,0.9719]
[1759960786357,1.27319357,4527.9,4527.8,0.97446557]
[1759960786752,1.05549357,4527.9,4527.8,0.97446557]
[1759960786952,0.52489357,4527.9,4527.8,0.97446557]
[1759960787760,0.33285907,4527.9,4527.8,0.97446557]
[1759960788955,0.02465907,4527.9,4527.8,0.97446557]
[1759960792454,0.02465907,4527.9,4527.8,0.75346557]
[1759960792662,0.02465907,4527.9,4527.8,0.97446557]
[1759960795158,0.02465907,4527.9,4527.8,0.75346557]
[1759960795362,0.02465907,4527.9,4527.8,0.97446557]
[1759960798359,0.24705907,4527.9,4527.8,0.97446557]
[1759960798560,0.55525907,4527.9,4527.8,1.37188557]
[1759960798767,0.02465907,4527.9,4527.8,1.37188557]
[1759960799067,0.55525907,4527.9,4527.8,1.37188557]
[1759960799264,0.33285907,4527.9,4527.8,1.37188557]
[1759960799569,0.02465907,4527.9,4527.8,1.37188557]
[1759960799776,0.42206907,4527.9,4527.8,1.37188557]
[1759960799963,0.42206907,4527.9,4527.8,0.97446557]
[1759960800261,0.42206907,4527.9,4527.8,0.75346557]
[1759960800470,0.77295907,4527.9,4527.8,0.75346557]
[1759960800667,0.02465907,4527.9,4527.8,0.97446557]
[1759960801263,0.4401,4528.6,4528.5,0.7509]
[1759960801462,1.2794,4528.0,4527.8,0.00256557]
[1759960801663,1.2794,4528.0,4527.9,5.20048049]
[1759960801664,2.80777746,4528.0,4527.9,5.20048049]
[1759960801871,3.2078,4529.6,4528.6,0.4265]
[1759960802068,1.14563,4528.9,4528.8,0.2096]
[1759960802270,1.14834361,4528.9,4528.8,0.221]
[1759960802865,0.83746,4528.5,4528.4,0.7509]
[1759960803067,1.14566,4528.5,4528.4,0.9719]
[1759960803267,1.27936,4528.5,4528.4,0.9719]
[1759960803469,0.83749,4528.1,4528.0,0.3244]
[1759960803664,9.36228049,4528.5,4527.5,1.15098049]
[1759960803665,1.14571,4527.9,4527.8,0.53656557]
[1759960803971,1.14571,4527.9,4527.8,0.75756557]
[1759960804174,1.14571,4527.9,4527.8,0.97446557]
[1759960806074,1.14571,4527.9,4527.8,0.53656557]
[1759960806271,1.14571,4527.9,4527.8,0.00256557]
[1759960806475,6.14571,4527.9,4527.8,0.00256557]
[1759960807669,0.4401,4526.9,4526.5,1.78556429]
[1759960807873,0.1337,4527.0,4525.7,0.534]
[1759960807874,0.7483,4525.8,4525.7,0.534]
[1759960808075,0.7483,4525.8,4525.7,0.7509]
[1759960808777,0.7483,4525.8,4525.7,0.97415261]
[1759960810370,0.7483,4525.8,4525.7,0.75315261]
[1759960810674,0.7483,4525.8,4525.7,0.97415261]
[1759960815383,0.5306,4525.8,4525.7,0.97415261]
[1759960819082,0.5306,4525.8,4525.7,1.37175261]
[1759960821382,0.61067,4526.1,4526.0,0.438]
[1759960821582,0.91797,4526.1,4526.0,0.9758]
[1759960821778,1.14287,4526.1,4526.0,0.9758]
[1759960823085,1.14287,4526.1,4526.0,1.37338]
[1759960823985,1.14287,4526.1,4526.0,1.05658]
[1759960824184,1.14287,4526.1,4526.0,1.37338]
[1759960824385,1.14287,4526.1,4526.0,1.05658]
[1759960824981,1.14287,4526.1,4526.0,0.659]
[1759960826280,1.14287,4526.1,4526.0,1.05658]
[1759960827885,1.14287,4526.1,4526.0,1.37338]
[1759960834686,0.2131,4526.4,4526.3,1.15235]
[1759960834885,0.1337,4527.5,4527.1,0.7548]
[1759960835088,1.31626997,4528.5,4528.1,1.15219]
[1759960835089,0.2131,4528.2,4528.1,1.15219]
[1759960835279,3.3324,4528.5,4528.4,0.39737]
[1759960835584,0.2131,4528.5,4528.4,1.37317]
[1759960835891,0.5204,4528.5,4528.4,1.37317]
[1759960836588,0.7453,4528.5,4528.4,1.37317]
[1759960836785,0.8699,4528.5,4528.4,1.37317]
[1759960838895,0.7453,4528.5,4528.4,1.37317]
[1759960843891,0.5204,4528.5,4528.4,1.37317]
[1759960846991,0.39734,4528.7,4528.6,0.83705]
[1759960847291,0.40004361,4528.9,4528.8,0.39733]
[1759960847489,0.92654361,4528.9,4528.8,1.15163]
[1759960848496,0.40004361,4528.9,4528.8,1.15163]
[1759960848795,0.71334361,4528.9,4528.8,1.15163]
[1759960848997,0.00271361,4528.9,4528.8,1.15163]
[1759960849295,0.00271361,4528.9,4528.8,4.35943]
[1759960849495,0.00271361,4528.9,4528.8,4.58043]
[1759960849690,0.52921361,4528.9,4528.8,4.35943]
[1759960849992,1.14523361,4528.9,4528.8,0.221]
[1759960850496,1.14253,4528.8,4528.7,0.39734]
[1759960850691,0.82925,4528.6,4528.5,0.61035]
[1759960850991,0.39737,4528.4,4528.0,3.6455]
[1759960851193,1.14259,4528.1,4528.0,3.60519]
[1759960851386,1.14259,4528.1,4528.0,3.82619]